bitfinex-derivatives/quotes_SOLF0:USTF0_20220106
["timestamp","ask_amount","ask_price","bid_price","bid_amount"]
[1641488039262,3.23704073,150.21,150.15,20.14211169]
[1641488040863,7.23704073,150.21,150.15,20.14211169]
[1641488041062,7.23704073,150.21,150.14,27.66479]
[1641488041462,3.23704073,150.21,150.14,27.66479]
[1641488041762,3.23704073,150.2,150.14,27.66479]
[1641488042564,37.64758171,150.21,150.14,27.66479]
[1641488042765,37.64758171,150.21,150.14,34.08979]
[1641488043066,37.64758171,150.21,150.17,27.66479]
[1641488043566,14.98781101,150.22,150.17,27.66479]
[1641488044467,15.06781101,150.23,150.18,1.44758307]
[1641488044668,15.06781101,150.23,150.18,8.22158307]
[1641488045472,15.06781101,150.23,150.18,6.774]
[1641488046973,15.06781101,150.23,150.17,55.32958]
[1641488048074,3.31704073,150.23,150.17,55.32958]
[1641488048272,3.31704073,150.23,150.18,1.44815004]
[1641488053277,3.31704073,150.23,150.2,4.70058297]
[1641488055577,3.31704073,150.23,150.19,4.70058297]
[1641488055778,10.51304073,150.23,150.19,4.70058297]
[1641488056480,3.23704073,150.22,150.19,4.70058297]
[1641488057983,3.31704073,150.23,150.19,4.70058297]
[1641488058182,9.84504073,150.23,150.19,4.70058297]
[1641488058783,3.23704073,150.22,150.19,4.70058297]
[1641488060185,3.31704073,150.23,150.19,4.70058297]
[1641488060986,3.31704073,150.23,150.2,4.70058297]
[1641488061189,3.31704073,150.23,150.2,14.31958297]
[1641488061388,3.31704073,150.23,150.22,27.66479]
[1641488063389,0.08,150.23,150.22,33.81352301]
[1641488065093,0.08,150.23,150.22,29.11294004]
[1641488066094,0.08,150.23,150.22,33.81254889]
[1641488066995,3.33131493,150.23,150.22,33.81254889]
[1641488067394,3.33131493,150.23,150.22,6.14775889]
[1641488067795,0.08,150.23,150.22,6.14775889]
[1641488068599,4.77956675,150.23,150.19,22.54341557]
[1641488069498,4.77956675,150.23,150.19,14.09990511]
[1641488069698,4.77956675,150.23,150.21,27.66479]
[1641488070500,0.08,150.23,150.22,6.147724]
[1641488071204,3.33122047,150.23,150.22,6.147724]
[1641488071906,3.33122047,150.23,150.21,32.36436396]
[1641488072704,0.08,150.23,150.21,32.36436396]
[1641488074308,0.08,150.23,150.22,6.14781683]
[1641488075911,3.33181441,150.23,150.22,6.14781683]
[1641488076110,1.441e-05,150.23,150.22,6.14781683]
[1641488076713,14.09990511,150.26,150.22,6.14781683]
[1641488078217,14.09990511,150.26,150.23,4.69957396]
[1641488079123,14.09990511,150.26,150.22,6.14781683]
[1641488080225,20.68990511,150.26,150.22,6.14781683]
[1641488081628,6.59,150.26,150.23,4.69957396]
[1641488081831,4.0,150.24,150.2,14.09990511]
[1641488082631,18.09990511,150.24,150.17,27.66479]
[1641488083127,18.09990511,150.24,150.16,14.09990511]
[1641488083328,4.0,150.22,150.16,14.09990511]
[1641488083529,10.96,150.22,150.16,14.09990511]
[1641488084028,4.0,150.2,150.15,14.09990511]
[1641488085128,18.09990511,150.2,150.13,21.09510627]
[1641488085330,4.0,150.19,150.13,21.09510627]
[1641488085828,27.66479,150.16,150.13,21.09510627]
[1641488086028,32.45379,150.16,150.13,21.09510627]
[1641488086428,32.45379,150.16,150.11,14.09990511]
[1641488087028,27.66479,150.16,150.11,14.09990511]
[1641488087229,14.09990511,150.18,150.11,14.09990511]
[1641488088933,67.9283,150.2,150.13,14.09990511]
[1641488089836,67.9283,150.2,150.15,27.66479]
[1641488090035,14.09990511,150.22,150.15,41.76469511]
[1641488090542,14.09990511,150.22,150.15,14.09990511]
[1641488091640,14.09990511,150.21,150.14,21.09510627]
[1641488091841,41.76469511,150.21,150.14,21.09510627]
[1641488093041,41.76469511,150.21,150.14,14.09990511]
[1641488093240,14.09990511,150.2,150.13,41.76469511]
[1641488094041,14.09990511,150.21,150.14,21.09505871]
[1641488094341,14.09990511,150.21,150.14,31.42105871]
[1641488094544,14.09990511,150.21,150.15,10.65026269]
[1641488095144,41.76469511,150.26,150.15,24.7501678]
[1641488095347,41.76469511,150.26,150.16,4.0]
[1641488095947,41.76469511,150.26,150.2,27.66479]
[1641488096952,41.76469511,150.26,150.16,14.09990511]
[1641488097149,33.01679,150.26,150.16,14.09990511]
[1641488097950,47.11669511,150.26,150.15,27.72424735]
[1641488098151,47.11669511,150.26,150.16,27.66479]
[1641488098850,33.01679,150.26,150.16,41.76469511]
[1641488099850,47.11669511,150.26,150.16,41.76469511]
[1641488101353,14.09990511,150.24,150.17,21.09494329]
[1641488102155,11.80804151,150.25,150.2,27.66479]
[1641488103255,37.64758171,150.27,150.2,27.66479]
[1641488103457,14.10007486,150.26,150.2,27.66479]
[1641488104058,14.10007486,150.26,150.2,55.32958]
[1641488104660,64.1687,150.28,150.2,55.32958]
[1641488104861,14.10018404,150.27,150.2,69.42948511]
[1641488105662,14.10018404,150.27,150.2,55.32958]
[1641488106663,14.10018404,150.25,150.2,55.32958]
[1641488107263,11.80684677,150.27,150.2,55.32958]
[1641488107462,11.80684677,150.27,150.2,47.80881871]
[1641488108164,14.10127328,150.25,150.2,47.80881871]
[1641488108663,14.10127328,150.25,150.2,20.14402871]
[1641488114667,14.10127328,150.26,150.23,27.66479]
[1641488115668,51.74885499,150.29,150.23,27.66479]
[1641488115869,14.10127328,150.29,150.23,27.66479]
[1641488116669,14.10127328,150.29,150.21,14.09990511]
[1641488116870,19.09727328,150.29,150.21,14.09990511]
[1641488117069,23.09727328,150.29,150.21,14.09990511]
[1641488117470,23.09727328,150.29,150.22,14.09990511]
[1641488118471,4.0,150.28,150.2,20.14402871]
[1641488119073,8.996,150.29,150.2,20.14402871]
[1641488120478,4.0,150.28,150.2,20.14402871]
[1641488120877,8.996,150.29,150.2,20.14402871]
[1641488122679,3.23307011,150.28,150.2,20.14402871]
[1641488123380,7.23307011,150.28,150.2,20.14402871]
[1641488124382,8.996,150.29,150.2,20.14402871]
[1641488125184,4.0,150.28,150.2,20.14402871]
[1641488125385,14.10127328,150.27,150.21,1.44861931]
[1641488126586,14.10127328,150.26,150.21,1.44861931]
[1641488128286,17.35241174,150.26,150.21,1.44861931]
[1641488128886,21.35241174,150.26,150.21,1.44861931]
[1641488129689,4.0,150.22,150.21,1.44861931]
[1641488129890,10.233,150.22,150.19,1.44861931]
[1641488130090,4.0,150.2,150.19,1.44861931]
[1641488130590,4.0,150.2,150.19,1.931e-05]
[1641488130791,7.25113846,150.2,150.15,14.09990511]
[1641488131994,3.25113846,150.2,150.15,14.09990511]
[1641488132194,31.66479,150.21,150.15,14.09990511]
[1641488132495,14.10127328,150.2,150.13,14.09992442]
[1641488133098,14.10127328,150.2,150.14,27.66479]
[1641488133896,79.06057328,150.22,150.15,21.09626743]
[1641488135194,14.10127328,150.22,150.15,21.09626743]
[1641488135596,14.10127328,150.22,150.14,55.32958]
[1641488135597,27.66479,150.23,150.14,55.32958]
[1641488136796,31.66479,150.23,150.14,55.32958]
[1641488136997,4.0,150.22,150.14,55.32958]
[1641488137201,4.0,150.22,150.14,27.66479]
[1641488137797,27.66479,150.23,150.14,27.66479]
[1641488137997,27.66479,150.23,150.14,33.65379]
[1641488138197,4.0,150.17,150.13,14.09990511]
[1641488138397,4.0,150.16,150.12,17.8612445]
[1641488138597,4.0,150.17,150.12,17.8612445]
[1641488138798,6.65623856,150.19,150.12,17.8612445]
[1641488138997,31.66479,150.23,150.12,14.09990511]
[1641488139198,31.66479,150.23,150.13,27.66479]
[1641488139397,14.10127328,150.2,150.13,27.66479]
[1641488140397,27.66479,150.23,150.13,27.66479]
[1641488142100,4.67293717,150.22,150.14,4.67293717]
[1641488142302,4.67293717,150.22,150.14,11.80993717]
[1641488143501,4.0,150.21,150.14,4.67293717]
[1641488143703,4.0,150.21,150.15,4.67293717]
[1641488144103,4.67293717,150.22,150.15,4.67293717]
[1641488144704,8.67293717,150.21,150.14,4.67293717]
[1641488145106,4.67293717,150.21,150.14,4.67293717]
[1641488145607,4.67293717,150.2,150.13,32.33772717]
[1641488146507,4.67293717,150.21,150.13,32.33772717]
[1641488146709,4.67293717,150.21,150.13,39.46472717]
[1641488147309,4.67293717,150.22,150.14,4.67293717]
[1641488148213,4.67293717,150.18,150.17,4.67293717]
[1641488149612,27.66479,150.2,150.17,4.67293717]
[1641488150314,4.70167982,150.18,150.17,4.67293717]
[1641488151214,27.66479,150.2,150.17,4.67293717]
[1641488151812,14.10127328,150.21,150.17,4.67293717]
[1641488152013,14.10127328,150.2,150.17,9.41293717]
[1641488152615,14.10127328,150.2,150.17,4.74]
[1641488152816,4.70111144,150.21,150.17,18.83990511]
[1641488153814,41.76606328,150.23,150.2,4.70126112]
[1641488154615,27.66479,150.23,150.2,4.70126112]
[1641488156916,41.76606328,150.23,150.2,4.70126112]
[1641488158417,41.76606328,150.23,150.19,4.70126112]
[1641488161025,14.10127328,150.22,150.18,4.70126112]
[1641488163023,21.25327328,150.22,150.18,4.70126112]
[1641488164026,7.152,150.22,150.19,4.70126112]
[1641488166028,41.76606328,150.23,150.19,4.70126112]
[1641488168029,41.76606328,150.23,150.2,4.70126112]
[1641488168730,27.66479,150.23,150.16,21.09259324]
[1641488168933,27.66479,150.23,150.19,4.69554529]
[1641488169332,27.66479,150.23,150.19,10.89454529]
[1641488169732,4.69548861,150.21,150.19,6.199]
[1641488170835,4.69548861,150.21,150.16,31.74241369]
[1641488171041,27.66479,150.23,150.16,31.74241369]
[1641488171042,27.66479,150.23,150.18,4.0]
[1641488171236,27.66479,150.23,150.18,8.795]
[1641488171438,4.69513831,150.22,150.2,1.44675322]
[1641488172537,27.66479,150.23,150.18,4.0]
[1641488173037,32.35964277,150.23,150.18,4.0]
[1641488173238,32.35964277,150.23,150.19,1.44681033]
[1641488174341,27.66479,150.23,150.19,1.44681033]
[1641488174540,27.66479,150.23,150.22,4.69464336]
[1641488175542,27.66479,150.23,150.19,14.09990511]
[1641488175741,21.2249078,150.23,150.19,14.09990511]
[1641488176145,21.2249078,150.23,150.22,4.69458786]
[1641488176744,14.08663588,150.27,150.22,4.69458786]
[1641488176947,14.08663588,150.27,150.24,4.0]
[1641488177146,14.08663588,150.27,150.24,10.656]
[1641488177748,14.08663588,150.27,150.24,34.32079]
[1641488178348,17.3329803,150.3,150.25,1.44681033]
[1641488179749,17.3329803,150.31,150.25,1.44681033]
[1641488182252,14.08663588,150.3,150.25,1.44681033]
[1641488182452,80.45693588,150.3,150.25,1.44681033]
[1641488183354,3.24634442,150.29,150.22,14.09990511]
[1641488183553,8.87034442,150.29,150.22,14.09990511]
[1641488183756,27.66479,150.28,150.22,14.09990511]
[1641488184355,30.91113442,150.28,150.21,22.53436205]
[1641488185056,30.91113442,150.28,150.21,15.54671544]
[1641488185257,3.24634442,150.27,150.21,1.44681033]
[1641488186559,3.24634442,150.27,150.22,4.0]
[1641488186761,3.24634442,150.27,150.22,10.64738924]
[1641488187460,3.24634442,150.27,150.24,4.0]
[1641488187660,3.24634442,150.27,150.22,6.64738924]
[1641488187661,3.24634442,150.27,150.23,4.0]
[1641488187861,3.24634442,150.27,150.24,27.66479]
[1641488188661,3.24634442,150.31,150.25,1.44681033]
[1641488190263,17.3329803,150.31,150.25,1.44681033]
[1641488192764,14.08663588,150.3,150.23,14.09990511]
[1641488193665,79.7327803,150.3,150.23,14.09990511]
[1641488194166,83.7327803,150.3,150.23,14.09990511]
[1641488194768,17.3329803,150.29,150.22,14.09990511]
[1641488196072,14.08663588,150.26,150.2,79.58500511]
[1641488196270,14.08663588,150.26,150.2,14.09990511]
[1641488197271,3.24634442,150.27,150.21,14.09990511]
[1641488198172,3.24634442,150.27,150.22,14.09990511]
[1641488199871,3.24634442,150.27,150.24,4.0]
[1641488200073,3.24634442,150.29,150.24,27.66479]
[1641488201075,3.24634442,150.31,150.25,22.54231339]
[1641488201875,3.24634442,150.31,150.25,15.54671544]
[1641488202075,17.3329803,150.31,150.25,1.44681033]
[1641488205980,14.08663588,150.3,150.25,1.44681033]
[1641488206179,20.47963588,150.3,150.25,1.44681033]
[1641488206980,3.24634442,150.29,150.25,1.44681033]
[1641488207482,4.0,150.26,150.19,37.64758171]
[1641488207680,4.0,150.25,150.19,37.64758171]
[1641488207882,4.0,150.25,150.16,37.64758171]
[1641488208282,27.66479,150.21,150.16,37.64758171]
[1641488208481,33.76879,150.21,150.16,37.64758171]
[1641488209284,33.76879,150.21,150.14,34.31549497]
[1641488209482,27.66479,150.21,150.14,27.66479]
[1641488210484,27.66479,150.21,150.15,6.99586177]
[1641488212185,27.66479,150.24,150.16,4.0]
[1641488212485,27.66479,150.24,150.16,6.64982045]
[1641488212686,90.51409,150.26,150.17,4.0]
[1641488212886,90.51409,150.26,150.17,8.958]
[1641488213486,90.51409,150.26,150.17,46.60558171]
[1641488214288,90.51409,150.26,150.18,27.66479]
[1641488214486,90.51409,150.26,150.18,65.31237171]
[1641488215187,90.51409,150.26,150.2,4.0]
[1641488215387,90.51409,150.26,150.19,10.99586177]
[1641488216586,90.51409,150.26,150.2,4.0]
[1641488217590,90.51409,150.26,150.19,6.99586177]
[1641488220691,4.0,150.24,150.19,6.99586177]
[1641488220894,5.984,150.24,150.19,6.99586177]
[1641488221092,9.984,150.24,150.19,6.99586177]
[1641488221292,9.984,150.24,150.15,6.99586177]
[1641488221493,5.984,150.24,150.15,6.99586177]
[1641488222294,5.984,150.24,150.15,10.99586177]
[1641488222593,11.81330484,150.25,150.16,4.0]
[1641488222993,90.51409,150.26,150.16,4.0]
[1641488223193,90.51409,150.26,150.15,13.64634559]
[1641488223796,90.51409,150.26,150.15,62.68698379]
[1641488223999,90.51409,150.26,150.17,4.0]
[1641488224596,90.51409,150.26,150.16,4.568]
[1641488225198,90.51409,150.26,150.2,4.0]
[1641488225398,67.1353,150.28,150.2,10.086]
[1641488226299,37.64758171,150.31,150.2,10.086]
[1641488226501,103.35588171,150.31,150.21,27.66479]
[1641488227499,103.35588171,150.31,150.21,31.66479]
[1641488227700,11.80749487,150.3,150.21,27.66479]
[1641488227901,11.80749487,150.3,150.21,31.66479]
[1641488228501,103.35588171,150.31,150.21,31.66479]
[1641488228801,65.7083,150.31,150.22,6.99300894]
[1641488229605,11.80622121,150.3,150.22,6.99300894]
[1641488230904,18.18822121,150.3,150.22,6.99300894]
[1641488231305,18.18822121,150.3,150.21,27.66479]
[1641488233510,18.18822121,150.3,150.22,6.99294213]
[1641488235013,11.80622121,150.3,150.22,13.49994213]
[1641488236914,4.69895607,150.26,150.25,4.69895607]
[1641488237917,14.09689818,150.29,150.22,21.08984031]
[1641488238116,14.09689818,150.29,150.22,31.22184031]
[1641488238317,14.09689818,150.29,150.22,37.86922955]
[1641488238518,14.09689818,150.29,150.25,27.66479]
[1641488238720,65.31237171,150.32,150.25,34.31063303]
[1641488239018,14.09476596,150.31,150.28,4.69825532]
[1641488239218,14.09476596,150.31,150.28,11.30825532]
[1641488240019,37.64758171,150.35,150.28,6.61]
[1641488240219,11.79721195,150.35,150.3,4.69748556]
[1641488241025,11.79721195,150.35,150.29,27.66479]
[1641488241218,11.79721195,150.35,150.31,4.69733267]
[1641488242219,11.79721195,150.35,150.29,27.66479]
[1641488243121,11.79721195,150.35,150.3,4.69753812]
[1641488243818,11.79721195,150.35,150.29,27.66479]
[1641488244019,11.79721195,150.35,150.29,32.36242563]
[1641488244719,11.79721195,150.35,150.29,27.66479]
[1641488244919,11.79721195,150.35,150.3,4.69754066]
[1641488245519,11.79721195,150.35,150.25,34.31063303]
[1641488246220,11.79721195,150.35,150.25,27.66479]
[1641488246421,27.66479,150.34,150.25,27.66479]
[1641488247025,27.66479,150.34,150.29,4.69778659]
[1641488247823,15.04646473,150.33,150.28,4.69794452]
[1641488248625,15.04646473,150.33,150.29,4.69789387]
[1641488249627,15.04646473,150.33,150.26,1.44869173]
[1641488250731,3.24925278,150.33,150.26,1.44869173]
[1641488250928,3.24925278,150.33,150.29,4.69797759]
[1641488251729,3.24925278,150.33,150.26,8.4438371]
[1641488252530,31.66479,150.34,150.29,4.69788217]
[1641488253030,3.24915638,150.33,150.26,8.4438371]
[1641488253731,27.66479,150.34,150.29,4.69793026]
[1641488254332,31.66479,150.34,150.29,4.69793026]
[1641488254532,4.69787426,150.3,150.26,8.4438371]
[1641488255333,3.24952419,150.31,150.28,4.69817069]
[1641488256334,62.2314,150.32,150.3,4.69779469]
[1641488256533,27.66479,150.34,150.3,4.69779469]
[1641488257134,27.66479,150.34,150.26,6.99512099]
[1641488257433,3.24910499,150.33,150.26,8.44383736]
[1641488257935,27.66479,150.34,150.29,4.69782868]
[1641488258739,3.24884266,150.33,150.3,4.69760275]
[1641488259540,34.70679,150.34,150.27,1.44871637]
[1641488260241,3.24894422,150.33,150.3,4.69768738]
[1641488261344,27.66479,150.34,150.27,1.44871637]
[1641488262141,3.24858439,150.33,150.31,4.69738752]
[1641488262942,27.66479,150.34,150.27,1.44871637]
[1641488263848,3.24853548,150.33,150.31,4.69734676]
[1641488264646,31.66479,150.34,150.29,4.69779856]
[1641488265146,27.66479,150.34,150.29,4.69779856]
[1641488265346,103.96908171,150.36,150.29,4.69779856]
[1641488265546,3.24906503,150.33,150.26,8.44383736]
[1641488266246,3.24906503,150.35,150.3,4.69768746]
[1641488266448,15.04470818,150.35,150.3,4.69768746]
[1641488266647,19.04470818,150.35,150.3,4.69768746]
[1641488267148,19.04470818,150.35,150.29,4.69778313]
[1641488267348,27.66479,150.34,150.29,4.69778313]
[1641488268050,3.24906503,150.33,150.28,4.68993089]
[1641488268649,9.37606503,150.33,150.28,4.68993089]
[1641488268851,9.37606503,150.33,150.26,1.44871637]
[1641488269652,3.24906503,150.32,150.28,4.69005644]
[1641488270553,4.68994326,150.3,150.26,1.44871637]
[1641488271454,4.69030066,150.29,150.27,4.69030066]
[1641488272356,81.96916931,150.32,150.25,1.44871637]
[1641488272559,81.96916931,150.32,150.28,4.69808708]
[1641488273456,67.899,150.32,150.25,22.51404565]
[1641488273657,3.24943915,150.31,150.25,22.51404565]
[1641488274259,67.899,150.32,150.25,22.51404565]
[1641488274460,4.69802443,150.28,150.25,22.51404565]
[1641488275059,3.24934305,150.31,150.25,22.51404565]
[1641488275761,4.69802572,150.28,150.25,14.07016931]
[1641488276462,3.24935986,150.31,150.25,14.07016931]
[1641488277165,4.69803898,150.28,150.25,14.07016931]
[1641488277865,3.24937433,150.31,150.25,14.07016931]
[1641488278865,4.69805825,150.28,150.25,14.07016931]
[1641488279467,17.34347853,150.31,150.25,14.07016931]
[1641488280069,17.34347853,150.31,150.26,5.0]
[1641488280266,4.69807588,150.28,150.26,5.0]
[1641488281067,4.69806612,150.29,150.27,1.44871637]
[1641488281971,3.24933052,150.31,150.26,19.07016931]
[1641488282268,5.452,150.3,150.26,19.07016931]
[1641488282569,4.69802261,150.29,150.27,1.44867611]
[1641488283867,5.452,150.3,150.26,19.07016931]
[1641488284067,67.899,150.32,150.26,19.07016931]
[1641488284971,4.69814116,150.29,150.27,1.4486524]
[1641488285971,67.899,150.32,150.26,5.0]
[1641488287474,4.69804739,150.29,150.27,1.44867116]
[1641488288574,4.69798153,150.28,150.26,5.0]
[1641488289474,4.69790078,150.29,150.27,1.44870048]
[1641488290374,67.899,150.32,150.26,5.0]
[1641488290576,27.66479,150.27,150.25,14.07016931]
[1641488290974,4.0,150.26,150.25,14.07016931]
[1641488291376,7.25029424,150.26,150.25,4.69881239]
[1641488291578,7.25029424,150.26,150.24,1.44851816]
[1641488291776,4.0,150.25,150.24,1.44851816]
[1641488291977,11.083,150.25,150.24,1.44851816]
[1641488292679,38.74779,150.25,150.18,37.64758171]
[1641488292878,4.0,150.24,150.2,1.44718124]
[1641488293677,42.00024044,150.25,150.2,1.44718124]
[1641488293877,34.74779,150.25,150.17,6.99223775]
[1641488294078,34.74779,150.25,150.2,5.573]
[1641488295184,34.74779,150.25,150.16,10.99223775]
[1641488295579,34.74779,150.25,150.16,41.64758171]
[1641488295779,34.74779,150.25,150.16,37.64758171]
[1641488296381,34.74779,150.25,150.16,56.03107223]
[1641488296580,38.74779,150.25,150.16,56.03107223]
[1641488297281,38.74779,150.25,150.16,6.99223775]
[1641488297683,34.74779,150.25,150.16,6.99223775]
[1641488298282,34.74779,150.25,150.16,44.63981946]
[1641488299583,38.74779,150.25,150.16,44.63981946]
[1641488299884,38.74779,150.25,150.16,6.99223775]
[1641488300087,34.74779,150.25,150.16,6.99223775]
[1641488303785,4.0,150.22,150.16,6.99223775]
[1641488304185,38.74779,150.25,150.16,6.99223775]
[1641488304586,4.0,150.24,150.16,6.99223775]
[1641488304886,27.66479,150.22,150.16,6.99223775]
[1641488311390,4.0,150.2,150.16,6.99223775]
[1641488311788,33.49879,150.22,150.16,6.99223775]
[1641488313488,27.66479,150.22,150.16,6.99223775]
[1641488314791,62.2618,150.23,150.16,11.81923775]
[1641488315293,27.66479,150.25,150.18,27.66479]
[1641488316493,27.66479,150.25,150.19,6.99223775]
[1641488317192,67.2613,150.26,150.19,6.99223775]
[1641488319194,67.2613,150.26,150.19,34.65702775]
[1641488319393,67.2613,150.26,150.19,27.66479]
[1641488320094,67.2613,150.26,150.2,6.99223775]
[1641488321895,67.2613,150.26,150.2,14.09785338]
[1641488322796,71.2613,150.26,150.2,14.09785338]
[1641488323396,27.66479,150.25,150.2,14.09785338]
[1641488323696,34.15879,150.25,150.19,14.09785338]
[1641488325700,81.35915338,150.26,150.19,14.09785338]
[1641488325900,81.35915338,150.26,150.21,4.0]
[1641488326100,14.09785338,150.26,150.2,4.0]
[1641488326300,14.09785338,150.28,150.21,14.09785338]
[1641488327104,14.09785338,150.28,150.25,4.0]
[1641488327303,14.09785338,150.28,150.27,27.66479]
[1641488327504,14.09785338,150.31,150.27,27.66479]
[1641488328704,14.09785338,150.33,150.27,41.76264338]
[1641488329504,14.09785338,150.33,150.27,14.09785338]
[1641488330004,79.30395338,150.34,150.27,14.09785338]
[1641488331009,14.09785338,150.33,150.26,76.73545338]
[1641488331907,14.09785338,150.33,150.26,14.09785338]
[1641488332707,14.09785338,150.31,150.24,78.96845338]
[1641488333606,14.09785338,150.32,150.25,22.53838879]
[1641488334507,14.09785338,150.32,150.25,14.09785338]
[1641488334708,65.2061,150.34,150.24,64.8706]
[1641488335509,14.09785338,150.32,150.26,14.09785338]
[1641488336709,20.19185338,150.32,150.26,14.09785338]
[1641488337108,20.19185338,150.32,150.25,22.53835619]
[1641488338008,3.24969742,150.31,150.25,22.53835619]
[1641488339009,14.09785338,150.32,150.25,22.53835619]
[1641488340910,17.3475508,150.32,150.25,22.53835619]
[1641488341509,45.0123408,150.32,150.25,22.53835619]
[1641488341708,45.0123408,150.32,150.25,1.44785489]
[1641488342610,3.24969742,150.31,150.25,1.44785489]
[1641488342811,10.16769742,150.31,150.25,1.44785489]
[1641488344313,3.24969742,150.3,150.25,1.44785489]
[1641488347615,71.71149742,150.3,150.25,1.44785489]
[1641488348217,68.4618,150.3,150.25,1.44785489]
[1641488348820,6.918,150.31,150.25,1.44785489]
[1641488349019,67.7685,150.32,150.25,1.44785489]
[1641488349320,67.7685,150.32,150.25,22.52876063]
[1641488350120,3.24664586,150.31,150.25,22.52876063]
[1641488352423,4.69214995,150.31,150.29,4.69214995]
[1641488352825,4.0,150.3,150.25,22.52876063]
[1641488353223,4.0,150.3,150.25,14.09785338]
[1641488353423,4.0,150.29,150.24,14.09785338]
[1641488353627,4.0,150.28,150.24,14.09785338]
[1641488353825,11.142,150.28,150.24,14.09785338]
[1641488354024,4.0,150.26,150.2,37.64758171]
[1641488354224,68.1195,150.27,150.2,37.64758171]
[1641488354425,4.0,150.23,150.2,37.64758171]
[1641488354625,37.27579,150.23,150.17,37.64758171]
[1641488355925,3.24710015,150.22,150.18,1.4439452]
[1641488356524,7.24710015,150.22,150.18,1.4439452]
[1641488357127,4.0,150.22,150.15,8.42413097]
[1641488357327,37.27579,150.23,150.15,8.42413097]
[1641488357727,4.0,150.22,150.15,8.42413097]
[1641488358026,4.0,150.21,150.15,8.42413097]
[1641488358427,4.0,150.2,150.15,8.42413097]
[1641488358629,27.66479,150.17,150.15,8.42413097]
[1641488358828,34.30779,150.17,150.15,8.42413097]
[1641488359027,34.30779,150.17,150.13,1.44390498]
[1641488360027,26.78451819,150.17,150.12,8.42413097]
[1641488360627,26.78451819,150.17,150.14,1.44390498]
[1641488361528,26.78451819,150.17,150.12,8.42413097]
[1641488361928,61.9212,150.21,150.12,8.42413097]
[1641488362128,61.9212,150.21,150.12,13.26213097]
[1641488363428,61.9212,150.21,150.12,8.42413097]
[1641488363629,61.9212,150.21,150.13,39.09148669]
[1641488364629,61.9212,150.21,150.14,39.09148669]
[1641488365630,61.9212,150.21,150.15,37.64758171]
[1641488367334,27.66479,150.23,150.15,37.64758171]
[1641488367535,65.4032,150.25,150.15,37.64758171]
[1641488367734,65.4032,150.25,150.16,74.10434156]
[1641488367935,65.4032,150.25,150.16,78.10434156]
[1641488368138,65.4032,150.25,150.16,74.10434156]
[1641488368337,63.9223,150.28,150.16,74.10434156]
[1641488368536,63.9223,150.28,150.16,78.10434156]
[1641488368736,27.66479,150.26,150.18,27.66479]
[1641488368939,27.66479,150.26,150.18,32.73079]
[1641488369138,27.66479,150.26,150.2,37.64758171]
[1641488369337,27.66479,150.28,150.2,37.64758171]
[1641488370941,27.66479,150.31,150.19,8.42413097]
[1641488371140,27.66479,150.31,150.2,6.64827311]
[1641488371938,3.25334772,150.3,150.21,39.09148669]
[1641488372139,9.96234772,150.3,150.21,39.09148669]
[1641488372540,3.25334772,150.29,150.21,1.44390498]
[1641488373739,7.25334772,150.29,150.21,1.44390498]
[1641488373939,3.25334772,150.29,150.21,1.44390498]
[1641488374142,7.25334772,150.29,150.21,1.44390498]
[1641488374339,3.25334772,150.28,150.21,1.44390498]
[1641488374839,30.91813772,150.28,150.21,1.44390498]
[1641488376441,3.25334772,150.27,150.2,8.42413097]
[1641488377243,15.06440352,150.3,150.2,8.42413097]
[1641488377445,15.06440352,150.3,150.2,13.17013097]
[1641488378150,15.06440352,150.3,150.21,1.44390498]
[1641488379153,3.25334772,150.3,150.2,46.07171268]
[1641488380856,9.64934772,150.3,150.2,46.07171268]
[1641488381053,4.0,150.26,150.2,46.07171268]
[1641488381254,10.893,150.26,150.2,46.07171268]
[1641488381455,4.0,150.25,150.2,46.07171268]
[1641488381654,4.0,150.25,150.2,8.42413097]
[1641488382853,3.25334772,150.24,150.17,8.42413097]
[1641488384555,3.25334772,150.24,150.19,14.10263216]
[1641488384757,3.25334772,150.24,150.19,41.76742216]
[1641488385456,14.10263216,150.26,150.2,1.44390498]
[1641488385657,70.13294772,150.27,150.21,14.10263216]
[1641488386460,3.25334772,150.26,150.21,14.10263216]
[1641488386658,7.67834772,150.26,150.21,14.10263216]
[1641488387460,3.25334772,150.25,150.21,14.10263216]
[1641488387661,9.33134772,150.25,150.21,14.10263216]
[1641488388262,9.33134772,150.25,150.17,57.45924392]
[1641488388263,3.25334772,150.24,150.2,14.10263216]
[1641488389466,3.25334772,150.26,150.2,14.10263216]
[1641488391064,3.25334772,150.26,150.21,14.10263216]